Cogmind - Beta 13 @@@ ROGUE MODE // 2024.06.08 @ 15:52:42 Player: Gabe+Kate4EVR Result: Destroyed by G-47 Trooper with Particle Gun Performance ------------- Evolutions (2) 1000 Regions Visited (3) 600 Robots Destroyed (54) 270 Value Destroyed (1007) 1007 Prototype IDs (1) 20 Alien Tech Used (0) 0 Bonus (0) 0 TOTAL SCORE: 2897 Bonus ------- None Cogmind --------- Core Integrity 0/550 Matter 2/300 Energy 75/100 System Corruption 0% Temperature Warm (108) Movement Core (50) Location -8/Materials Parts ------- > --- POWER (1) -------- (None) > --- PROPULSION (2) --- (None) > --- UTILITY (6) ------ Improved Signal Interpreter > --- WEAPON (2) ------- (None) > --- INVENTORY (5) ---- Improved Ion Engine Field Recycling Unit (0) Advanced Assault Cannon Advanced Assault Cannon Heavy Hammer Peak State ------------ > --- POWER ------------ Improved Ion Engine > --- PROPULSION ------- Light Treads Improved Treads > --- UTILITY ---------- Medium Storage Unit High-capacity Matter Pod Improved Sensor Array Improved Signal Interpreter Hardened Light Armor Plating Hardened Light Armor Plating > --- WEAPON ----------- Advanced Assault Cannon Advanced Assault Cannon > --- INVENTORY -------- Light Ion Engine Improved Ion Engine Aluminum Leg Field Recycling Unit Advanced Assault Cannon Gauss Cannon Gauss Cannon Gauss Cannon Gauss Cannon Heavy Hammer [Rating: 27] Favorites ----------- Power Light Ion Engine Engine Light Ion Engine Propulsion Aluminum Leg Treads Light Treads Leg Aluminum Leg Flight Unit Flight Unit Utility Medium Storage Unit Device Sensor Array Storage Medium Storage Unit Processor Signal Interpreter Protection Hardened Light Armor Plating Weapon Improved Light Cannon Energy Gun Small Laser Ballistic Gun Heavy Assault Rifle Ballistic Cannon Improved Light Cannon Impact Weapon Heavy Hammer Build | -11 -10 -9 -8 ------- Run | Yrd Mat Mat Mat Slots Evolved 4 | . . 2 2 Power . | . . . . Propulsion . | . . . . Utility 4 | . . 2 2 Weapon . | . . . . Parts Attached 53 | 6 14 16 17 Power 4 | 1 . 1 2 Engine 4 | 1 . 1 2 Core . | . . . . Reactor . | . . . . Propulsion 16 | 2 7 2 5 Treads 3 | . . . 3 Leg 11 | 2 5 2 2 Wheel . | . . . . Hover . | . . . . Flight 2 | . 2 . . Utility 16 | 1 4 7 4 Device 5 | . 2 2 1 Storage 6 | 1 2 2 1 Processor 2 | . . 1 1 Hackware . | . . . . Protection 3 | . . 2 1 Artifact . | . . . . Weapon 17 | 2 3 6 6 Energy Gun 2 | 2 . . . Energy Cannon . | . . . . Ballistic Gun 2 | . . 2 . Ballistic Cannon 11 | . 3 3 5 Launcher . | . . . . Special Weapon . | . . . . Impact Weapon 2 | . . 1 1 Slashing Weapon . | . . . . Piercing Weapon . | . . . . Special Melee Weapon . | . . . . Unidentified Prototypes 1 | . . 1 . Parts Lost 11 | . . 4 7 Power 2 | . . 1 1 Propulsion 2 | . . . 2 Utility 6 | . . 2 4 Weapon 1 | . . 1 . Highest Loss Streak 4 | . . 2 4 To Critical Strikes . | . . . . Average Slot Usage (%) 95 | . 97 94 96 Engine 10 | . 14 10 7 Treads 1 | . . . 4 Leg 21 | . 27 22 13 Device 10 | . 12 10 7 Storage 14 | . 14 13 17 Processor 7 | . . 11 9 Protection 6 | . . 4 16 Ballistic Cannon 21 | . 27 20 17 Naked Turns . | . . . . Heaviest Build 44 | 11 22 27 44 Greatest Support 43 | 20 20 20 43 Greatest Overweight (x) 4 | . 4 1 3 Average Overweight (x) . | . . . 1 Largest Inventory Capacity 10 | 8 10 10 10 Average Capacity 9 | 6 8 10 9 Most Carried 10 | 2 10 10 10 Average Carried 8 | . 8 9 9 Final Capacity 10 | 8 10 10 5 Final Carried 10 | 2 10 10 5 Class Distribution -------------------- 57% | Mutant 42% | Scavenger-Mutant Dominant Class ---------------- Mutant | -10/Materials Scavenger-Mutant | -9/Materials Scavenger-Mutant | -8/Materials Resources | -11 -10 -9 -8 ----------- Run | Yrd Mat Mat Mat Matter Collected 1541 | 186 258 873 224 Remotely 216 | . 138 78 . Salvage Created 1495 | . 289 680 526 Parts 105 | . 18 48 39 Haulers Intercepted 3 | . . 2 1 Recyclers Shooed 3 | . . 2 1 Parts Field Recycled . | . . . . Retrieved Matter . | . . . . Parts Self-Destructed . | . . . . Prevented . | . . . . Kills | -11 -10 -9 -8 ------- Run | Yrd Mat Mat Mat Combat Hostiles Destroyed 30 | . 5 17 8 Melee 1 | . . . 1 Guns 1 | . . 1 . Cannons 28 | . 5 16 7 Classes Destroyed 11 | . 4 5 2 Worker 4 | . . 1 3 Builder 1 | . . 1 . Hauler 3 | . . 2 1 Recycler 8 | . 2 3 3 Mechanic 1 | . . 1 . Operator 1 | . . . 1 Watcher 6 | . 1 4 1 Swarmer 16 | . 3 11 2 Grunt 9 | . 2 4 3 Sentry 4 | . . 2 2 Hunter 1 | . . . 1 Best Kill Streak 11 | . 3 11 4 Combat Bots Only 4 | . 3 4 2 Max Kills in Single Turn 2 | . 1 2 2 Gunslinging . | . . . . Exploded . | . . . . Melee 1 | . . . 1 Uniques/NPCs Destroyed . | . . . . Combat | -11 -10 -9 -8 -------- Run | Yrd Mat Mat Mat Hostile Shots Fired 216 | . 25 73 118 Missed 48 | . 4 27 17 Damage Taken 2389 | . 183 499 1707 Core 697 | . 19 116 562 Absorbed by Shields . | . . . . Core Remaining (%) 87 | 100 92 71 . Volleys Fired 126 | . 19 61 46 Largest 2 | . 2 2 2 Hottest 96 | . 78 78 96 Shots Fired 240 | . 38 121 81 Gun 4 | . . 4 . Cannon 236 | . 38 117 81 Launcher . | . . . . Special . | . . . . Kinetic 240 | . 38 121 81 Thermal . | . . . . Explosive . | . . . . Electromagnetic . | . . . . Robot Hit Streak 20 | . 5 20 5 Robot Miss Streak 7 | . 6 7 6 Penetration Max . | . . . . Secondary Targets . | . . . . Shots Hit Robots 103 | . 12 59 32 Core Hits 58 | . 8 30 20 Critical Kills . | . . . . Critical Parts Destroyed . | . . . . Critical Strikes 6 | . 1 2 3 Blast 6 | . 1 2 3 Melee Attacks 4 | . . 2 2 Impact 4 | . . 2 2 Slashing . | . . . . Piercing . | . . . . Sneak Attacks . | . . . . Combat Hostiles . | . . . . Follow-up Attacks . | . . . . Damage Inflicted 2636 | . 245 1338 1053 Guns 37 | . . 37 . Cannons 2539 | . 245 1301 993 Explosions . | . . . . Melee 60 | . . . 60 Ramming . | . . . . Kinetic 2576 | . 245 1338 993 Thermal . | . . . . Explosive . | . . . . Electromagnetic . | . . . . Impact 60 | . . . 60 Slashing . | . . . . Piercing . | . . . . Highest Corruption 1 | . 1 . . Average Corruption 1 | . 1 . . Corruption Purged . | . . . . Corruption Blocked . | . . . . Overload Shots . | . . . . Overflow Damage 39 | . 3 17 19 Projectiles 39 | . 3 17 19 Explosions . | . . . . Melee . | . . . . Knockbacks 15 | . . 9 6 Impact . | . . . . Kinetic 15 | . . 9 6 Secondary . | . . . . Self-Inflicted Damage . | . . . . Shots . | . . . . Rammed . | . . . . Targets Rammed . | . . . . Kicked . | . . . . Crushed . | . . . . Highest Temperature 825 | . 108 120 825 Average Temperature 116 | . 37 28 216 Received Heat Transfer 630 | . 42 120 468 Effects 29 | . . . 29 Shutdowns 3 | . . . 3 Energy Bleed 3 | . . . 3 Interference 4 | . . . 4 Matter Decay 2 | . . . 2 Short Circuit 6 | . . . 6 Damage (major) 7 | . . . 7 Damage (core) 4 | . . . 4 Siege Activations . | . . . . Robots Corrupted . | . . . . Combat Hostiles . | . . . . Parts Fried . | . . . . Impact Corruptions . | . . . . Robots Melted . | . . . . Combat Hostiles . | . . . . Parts Melted . | . . . . Heat Transferred . | . . . . Parts Sabotaged . | . . . . Parts Stolen . | . . . . Parts Stripped . | . . . . Power Chain Reactions . | . . . . Alert | -11 -10 -9 -8 ------- Run | Yrd Mat Mat Mat Peak Influence 301 | . 186 301 258 Initial 126 | . . 78 126 Average 132 | . 60 174 150 Maximum Alert Level 1 | . . 1 1 Low Security (%) 80 | 100 100 58 92 Level 1 19 | . . 41 7 Level 2 . | . . . . Level 3 . | . . . . Level 4 . | . . . . Level 5 . | . . . . High Security . | . . . . Max Security . | . . . . Squads Dispatched 4 | . 3 . 1 Investigation 1 | . 1 . . Extermination . | . . . . Reinforcement 3 | . 2 . 1 Assault . | . . . . Garrison . | . . . . Intercept . | . . . . Searches Triggered . | . . . . Construction Impeded . | . . . . Haulers Reinforced . | . . . . Active Scanning Responses . | . . . . Cargo Convoy Interrupts . | . . . . Stealth | -11 -10 -9 -8 --------- Run | Yrd Mat Mat Mat Distress Signals 6 | . . 3 3 Communications Jammed . | . . . . Distress Signals . | . . . . Times Spotted 54 | . 9 26 19 Peak Tracking Total 6 | . 3 6 6 Tactical Retreats 5 | . 1 2 2 Traps | -11 -10 -9 -8 ------- Run | Yrd Mat Mat Mat Traps Triggered 3 | . 3 . . Indirectly . | . . . . Trap Hack Attempts . | . . . . Triggered . | . . . . Disarmed . | . . . . Reprogrammed . | . . . . Reused . | . . . . Traps Extracted . | . . . . Installed . | . . . . Triggered . | . . . . Machines | -11 -10 -9 -8 ---------- Run | Yrd Mat Mat Mat Machines Disabled 7 | . 2 3 2 Max in Single Turn 1 | . 1 1 1 Machines Repaired . | . . . . Machines Dismantled . | . . . . Machines Sabotaged . | . . . . Overloaded Fab Kills . | . . . . Hacking | -11 -10 -9 -8 --------- Run | Yrd Mat Mat Mat Machines Accessed 3 | . . 1 2 Terminals 3 | . . 1 2 Fabricators . | . . . . Repair Stations . | . . . . Recycling Units . | . . . . Scanalyzers . | . . . . Garrison Access . | . . . . Total Hacks 9 | . . 3 6 Successful 3 | . . 1 2 Failed 6 | . . 2 4 Catastrophic . | . . . . Database Lockouts . | . . . . Manual 2 | . . . 2 Terminals 9 | . . 3 6 Fabricators . | . . . . Repair Stations . | . . . . Recycling Units . | . . . . Scanalyzers . | . . . . Garrison Access . | . . . . Terminal Hacks 3 | . . 1 2 Alert Level 1 | . . . 1 Unreport Threat 1 | . . 1 . Registered Components 1 | . . . 1 Fabricator Hacks . | . . . . Repair Station Hacks . | . . . . Recycling Unit Hacks . | . . . . Scanalyzer . | . . . . Garrison Access Hacks . | . . . . Unauthorized Hacks . | . . . . Terminals . | . . . . Fabricators . | . . . . Repair Stations . | . . . . Recycling Units . | . . . . Scanalyzers . | . . . . Garrison Access . | . . . . Data Cores Recovered . | . . . . Used . | . . . . Hacking Detections 3 | . . 1 2 Full Trace Events . | . . . . Feedback Events . | . . . . Feedback Blocked . | . . . . Robot Schematics Acquired . | . . . . Robots Built . | . . . . Authchips . | . . . . Time . | . . . . Total Robot Build Rating . | . . . . Part Schematics Acquired . | . . . . Parts Built . | . . . . Authchips . | . . . . Time . | . . . . Total Part Build Rating . | . . . . Parts Repaired . | . . . . Time . | . . . . Parts Recycled . | . . . . Recycled Matter . | . . . . Retrieved Matter . | . . . . Retrieved Components . | . . . . Parts Scanalyzed . | . . . . Part Schematics Acquired . | . . . . Parts Damaged . | . . . . Bothacking | -11 -10 -9 -8 ------------ Run | Yrd Mat Mat Mat Used RIF Installer . | . . . . Robots Hacked . | . . . . Non-combat . | . . . . Combat . | . . . . Robot Hacks Applied . | . . . . Relay Couplers Released . | . . . . Fabnet Peak Effective % . | . . . . Robots Rewired . | . . . . Allies Hacked . | . . . . Hacks Repelled . | . . . . Allies | -11 -10 -9 -8 -------- Run | Yrd Mat Mat Mat Total Allies . | . . . . Largest Group . | . . . . Highest-Rated Group . | . . . . Highest-Rated Ally . | . . . . Total Orders . | . . . . Ally Attacks . | . . . . Total Damage . | . . . . Kills . | . . . . Allies Corrupted . | . . . . Allies Melted . | . . . . Intel | -11 -10 -9 -8 ------- Run | Yrd Mat Mat Mat Robot Analysis Total . | . . . . Derelict Logs Recovered . | . . . . Drone Launches . | . . . . Drone Recoveries . | . . . . Exploration | -11 -10 -9 -8 ------------- Run | Yrd Mat Mat Mat Turns Passed 2433 | 69 660 1055 649 Spaces Moved 971 | 50 296 421 204 Core 5 | 5 . . . Treads 39 | . . . 39 Legs 922 | 45 291 421 165 Wheels . | . . . . Hover . | . . . . Flight 5 | . 5 . . Fastest Speed 50 | 50 120 120 190 Average Speed 178 | 113 136 188 233 Slowest Speed 360 | 120 360 190 330 Overloaded Moves . | . . . . Propulsion Burnouts . | . . . . Robots Hopped . | . . . . Cave-ins Triggered . | . . . . Exploration Rate (%) 26 | 5 47 36 18 Regions Visited 3 Branch Regions . Pre-discovered Areas . | . . . . Known Exits Taken 1 | . . 1 . Unknown Exits Taken 2 | 1 1 . . Scrap Searched . | . . . . Spaces Dug 9 | . . 1 8 Terrain Destroyed 38 | . 1 4 33 Melee 1 | . . 1 . Projectile 37 | . 1 3 33 AOE . | . . . . Terrain Rammed . | . . . . Walls Destroyed . | . . . . Machines Disabled . | . . . . Actions | -11 -10 -9 -8 --------- Run | Yrd Mat Mat Mat Total 1441 | 59 517 565 300 Wait 217 | 2 164 42 9 Move 968 | 49 295 420 204 Hop . | . . . . Pick Up 28 | 2 10 9 7 Fast Attach 26 | 6 11 7 2 Attach 6 | . . 3 3 Detach 4 | . 2 2 . Swap 21 | . 3 6 12 Drop 41 | . 13 13 15 Fire 126 | . 19 61 46 Melee 4 | . . 2 2 Ram . | . . . . Kick . | . . . . Crush . | . . . . Escape Stasis . | . . . . Rewire . | . . . . Trap . | . . . . Miscellaneous . | . . . . Route ------- -11/Scrapyard -10/Materials -9/Materials -8/Materials History --------- Turn | Location | Event 32 | -11/Scrapyard | Discovered new exit (range 16) 70 | -11/Scrapyard | Entered Materials 303 | -10/Materials | Build established: Mutant 548 | -10/Materials | Discovered new exit (range 6) 730 | -10/Materials | Entered another Materials area 730 | -9/Materials | Evolved 2 slots: Utility x2 1522 | -9/Materials | Build established: Scavenger-Mutant 1680 | -9/Materials | Discovered new exit (range 16) 1782 | -9/Materials | Identified exit to Materials 1785 | -9/Materials | Entered another Materials area 1785 | -8/Materials | Evolved 2 slots: Utility x2 2352 | -8/Materials | Core integrity fell below 50% 2382 | -8/Materials | Core integrity fell below 20% 2398 | -8/Materials | Lost 3 parts (1p2u) 2434 | -8/Materials | Destroyed by G-47 Trooper with Particle Gun Last Messages --------------- 02406_ R-06 Scavenger collects Datajack. 02408_ Critical hit (Burn: +37). 02409_ A-02 Transporter Ion Engine blasted off. 02410_ K-01 Serf collects debris. 02410_ R-06 Scavenger collects Imp. Light Cannon. 02415_ A-02 Transporter destroyed. 02415_ K-01 Serf collects debris. 02423_ Hrd. Light Armor Plating destroyed. 02424_ S-10 Pest knocked back. 02424_ K-01 Serf destroyed. 02424_ Broken Aluminum Leg destroyed. 02424_ Hcp. Matter Pod destroyed. 02427_ S-10 Pest destroyed. 02427_ Destroyed Flight Unit. 02428_ Aluminum Leg destroyed. 02430_ Destroyed Lgt. Ion Engine. 02430_ S-10 Pest destroyed. 02433_ Dropped Med. Storage Unit. 02433_ Dropped Adv. Assault Cannon. 02434_ Dropped Gauss Cannon. Map ----- +----------------------------------------------------+ | ?????????????????????????????????????????????????? | | ##???????????????????????????????????????????????? | | #???????????????????????????????????????????????? | | #???????????????????????????????????????????????? | | #???????????????????????????????????????????????? | | #???????????????????????????????????????????????? | | #???????????????????????????????????????????????? | | #???????????????????????????????????????????????? | | #???????????????????????????????????????????????? | | #???????????????????????????????????????????????? | | #???????????????????????????????????????????????? | | #?????????????????????????###???????????????????? | | #????????????????????????? #??????????????????? | | #????????????????????????? ???????????????????? | | #???????????????????????? ???????????????????? | | #???????????????????????? ???????????????????? | | #???????????????????????? ????????????????????? | | #???????????????????????? ????????????????????? | | #??????????#+???????????? ????????????????????? | | #??????????# ???????????? ?????????????????????? | | #??????????# ???????????? ?????????????????????? | | ####???????# #?????????##+####??????????????????? | | "[ ####????# #?????????#![%[%???????????????????? | | ![ ##???# #?????????#%*=#????????????????????? | | ## ## "##??# #??###??###]]!#????????????????????? | | ?####### #### ####*####*!@] ##???????????????????? | | ????# ] ## "# ===% s%=]] ;#???????????????????? | | ????# T " % ;!!==g*%[% ##???????????????????? | | ????# ; ===%!%=%s ;;#??????????????????? | | ????# [[ # % #!=%!*=%=% [ # ??????????????? | | ????# [[ [##"####%! !=% !%## ///#?????????????? | | ????# [[ ####?""! =#?? // #?????????????? | | ????########???#"T ;??? // #?????????????? | | ???????????????#" """ ;#??? #?????????????? | | ???????????????#;# """ ##???? #?????????????? | | ???????????????;## """ #??????##?????????????? | | ?????????????? ?? ????????????????????? | | ?????????????+?? ???????????????????? | | ??????????????? ??????????????????? | | ???????????????#+## ######## ???!??????????????? | | ??????????????????# #??????????????????????????? | | ??????????????????? #??????????????????????????? | | ??????????????????? #??????????????????????????? | | ??????????????????? ???????????????????????????? | | ?????????????????????????????????????????????????? | | ?????????????????????????????????????????????????? | | ?????????????????????????????????????????????????? | | ?????????????????????????????????????????????????? | | ?????????????????????????????????????????????????? | | ?????????????????????????????????????????????????? | +----------------------------------------------------+ Best States ------------- Heat Dissipation 31 Energy Generation 12 Energy Capacity 265 Matter Stores 420 Matter Capacity 500 Sight Range 16 Robot Scan Range 15 Terrain Scan Density 10 Armor Coverage 300 Evasion (%) 55 Recoil Reduction 2 Item Schematics ----------------- None Robot Schematics ------------------ None Fabricated ------------ Nothing Alien Tech Used ----------------- None Achievements -------------- None Challenges ------------ None Game ------ Seed TractorTeslaMount Manual? 0 Play Time 00:15:10 Cumulative 171.5 hours Start 2024.06.08 @ 15:38:57 End 2024.06.08 @ 15:52:42 Sessions 1 Manual Loads 0 Difficulty Rogue Special Mode None Game No. 341 Rogue 341 Adventurer 0 Explorer 0 Win Type - Total 0 Types 0/0/0/0/0/0/0/0/0 Lore% 47 Gallery% 64 Achievement% 45 Wizard Run 0 Options --------- Layout 0 ASCII 0 Keyboard 1 Movement Numpad Keybinds 0 Fullscreen 2 Font 18/X11 Map View 76x50 Zoom Use 0% Tactical HUD 1 Map Filters NONE Filters NONE Steam 1 RUN: afd4ce35-5e84-4a2e-9c0a-93fb36175a64